Workbook

Sheet calcolo livelli di rischio
A1: A cura di ANCI Lombardia e ReteComuni, in collaborazione con Fondazione Cariplo e IFEL | C1: concorso per assunzione di personale | D1: concorso per la progressione in carriera del personale | E1: Selezione per affidamento incarico professionale | F1: Incentivi economici al personale | G1: Adozione atti organizzativi in materia di personale | H1: Affidamento mediante procedura aperta o ristretta o negoziata di lavori, servizi, forniture | I1: Affidamento diretto di lavori, servizi o forniture | J1: gare ad evidenza pubblica di vendita di beni | K1: Affidamenti in house | L1: Pratiche anagrafiche | M1: Documenti di identità | N1: Organizzazione eventi | O1: Gestione procedimenti segnalazione e reclamo | P1: Gestione della leva | Q1: Gestione elettorato | R1: Rilascio di patrocini | S1: Nomina dei rappresentanti del Comune presso enti, aziende, istituzioni | T1: Rilascio permesso di costruire | U1: Denuncia o segnalazione inizio attività edilizia | V1: Provvedimenti di pianificazione urbanistica generale | W1: Provvedimenti di pianificazione urbanistica attuativa | X1: Autorizzazione ad occupazione suolo pubblico | Y1: Autorizzazioni relative a spettacoli, trattenimenti e simili | Z1: Permesso di costruire convenzionato | AA1: Gestione sepolture e loculi | AB1: Gestione tombe di famiglia | AC1: Pratiche SUAP controllo requisiti e documentazione | AD1: Servizi per minori e famiglie compartecipazione o contribuzione diretta | AE1: Servizi assistenziali e sociali per anziani | AF1: Servizi per disabili | AG1: Servizi per adulti in difficoltà | AH1: Gestione diritto allo studio | AI1: Gestione sanzioni per violazione CDS | AJ1: Accertamenti e verifiche tributi locali | AK1: Accertamenti con adesione tributi locali | AL1: Accertamenti e controlli su abusi edilizi | AM1: Vigilanza sulla circolazione e la sosta | AN1: Controlli sull'uso del territorio | AO1: Gestione ordinaria delle entrate | AP1: Gestione ordinaria delle spese | AQ1: Funzionamento organi collegiali | AR1: Formazione ordinanze, determinazioni, decreti e altri atti amministrativi | AS1: Adozione decreti | AT1: Adozione ordinanze contingibili e urgenti | AU1: Adozione ordinanze dirigenziali | AV1: PROVA MAX | AW1: PROVA MIN
A2: FATTORE DI RISCHIO | B2: DESCRIZIONE | C2: punteggio | D2: punteggio | E2: punteggio | F2: punteggio | G2: punteggio | H2: punteggio | I2: Gare ad evidenza pubblica di vendita di beni | J2: punteggio | K2: punteggio | L2: punteggio | M2: punteggio | N2: punteggio | O2: punteggio | P2: punteggio | Q2: punteggio | R2: punteggio | S2: punteggio | T2: punteggio | U2: punteggio | V2: punteggio | W2: punteggio | X2: punteggio | Y2: punteggio | Z2: punteggio | AA2: punteggio | AB2: punteggio | AC2: punteggio | AD2: punteggio | AE2: punteggio | AF2: punteggio | AG2: punteggio | AH2: punteggio | AI2: punteggio | AJ2: punteggio | AK2: punteggio | AL2: punteggio | AM2: punteggio | AN2: punteggio | AO2: punteggio | AP2: punteggio | AQ2: punteggio | AR2: punteggio | AS2: punteggio | AT2: punteggio | AU2: punteggio | AV2: punteggio | AW2: punteggio
A3: Interferenze | B3: I ruoli di indirizzo e i ruoli gestionali possono entrare in conflitto fra loro (es. interferenze degli organi di indirizzo nell’attività degli uffici, oppure inerzia dei ruoli gestionali nei confronti degli indirizzi della componente politica dell’amministrazione) | C3: 5 | D3: 1 | E3: 5 | F3: 5 | G3: 5 | H3: 5 | I3: 5 | J3: 5 | K3: 1 | L3: 1 | M3: 1 | N3: 5 | O3: 1 | P3: 1 | Q3: 1 | R3: 5 | S3: 5 | T3: 5 | U3: 5 | V3: 5 | W3: 5 | X3: 1 | Y3: 1 | Z3: 5 | AA3: 5 | AB3: 5 | AC3: 1 | AD3: 5 | AE3: 1 | AF3: 1 | AG3: 1 | AH3: 1 | AI3: 1 | AJ3: 5 | AK3: 1 | AL3: 1 | AM3: 1 | AN3: 1 | AO3: 5 | AP3: 5 | AQ3: 5 | AR3: 5 | AS3: 5 | AT3: 1 | AU3: 1 | AV3: 5 | AW3: 1
A4: Carenze gestionali | B4: I ruoli gestionali non intervengono adeguatamente nel processo: (es. mancata analisi dei fabbisogni , scarsa progettualità, mancata pianificazione, conseguente necessità di lavorare sempre "d'urgenza", in assenza di controlli) | C4: 1 | D4: 1 | E4: 1 | F4: 1 | G4: 1 | H4: 1 | I4: 1 | J4: 1 | K4: 1 | L4: 1 | M4: 1 | N4: 1 | O4: 1 | P4: 1 | Q4: 1 | R4: 5 | S4: 1 | T4: 1 | U4: 1 | V4: 1 | W4: 1 | X4: 1 | Y4: 1 | Z4: 1 | AA4: 1 | AB4: 1 | AC4: 1 | AD4: 1 | AE4: 1 | AF4: 1 | AG4: 1 | AH4: 1 | AI4: 1 | AJ4: 1 | AK4: 1 | AL4: 1 | AM4: 1 | AN4: 1 | AO4: 1 | AP4: 1 | AQ4: 1 | AR4: 1 | AS4: 1 | AT4: 1 | AU4: 1 | AV4: 5 | AW4: 1
A5: Carenze operative | B5: I ruoli operativi non intervengono adeguatamente nel processo: (es. carenza di competenze, bassa percezione del rischio, carenza di risorse umane) | C5: 1 | D5: 1 | E5: 5 | F5: 5 | G5: 5 | H5: 5 | I5: 5 | J5: 1 | K5: 5 | L5: 5 | M5: 5 | N5: 5 | O5: 5 | P5: 5 | Q5: 5 | R5: 5 | S5: 5 | T5: 5 | U5: 5 | V5: 5 | W5: 5 | X5: 5 | Y5: 5 | Z5: 5 | AA5: 5 | AB5: 5 | AC5: 5 | AD5: 5 | AE5: 5 | AF5: 5 | AG5: 5 | AH5: 5 | AI5: 5 | AJ5: 5 | AK5: 5 | AL5: 5 | AM5: 5 | AN5: 5 | AO5: 5 | AP5: 5 | AQ5: 5 | AR5: 5 | AS5: 5 | AT5: 5 | AU5: 5 | AV5: 5 | AW5: 1
A6: Carenze Organizzative | B6: Il processo non è supportato da una chiara definizione dei poteri, delle responsabilità (organigramma) e delle attività da svolgere (es. mancata segregazione dei compiti, , mancanza di job description, gestione delle deleghe e delle responsabilità non adeguata, assenza di procedure o prassi condivise) | C6: 1 | D6: 1 | E6: 1 | F6: 1 | G6: 1 | H6: 1 | I6: 5 | J6: 1 | K6: 1 | L6: 1 | M6: 1 | N6: 5 | O6: 1 | P6: 1 | Q6: 1 | R6: 1 | S6: 1 | T6: 1 | U6: 1 | V6: 1 | W6: 1 | X6: 1 | Y6: 1 | Z6: 1 | AA6: 5 | AB6: 5 | AC6: 1 | AD6: 1 | AE6: 1 | AF6: 1 | AG6: 1 | AH6: 1 | AI6: 1 | AJ6: 1 | AK6: 1 | AL6: 1 | AM6: 1 | AN6: 1 | AO6: 1 | AP6: 1 | AQ6: 1 | AR6: 1 | AS6: 1 | AT6: 1 | AU6: 1 | AV6: 5 | AW6: 1
A7: Carenza di controllo | B7: I controlli sull'indirizzo, la gestione e l'esecuzione del processo sono assenti o non adeguati | C7: 1 | D7: 1 | E7: 1 | F7: 1 | G7: 1 | H7: 1 | I7: 1 | J7: 1 | K7: 1 | L7: 5 | M7: 5 | N7: 1 | O7: 1 | P7: 1 | Q7: 1 | R7: 1 | S7: 1 | T7: 1 | U7: 1 | V7: 1 | W7: 1 | X7: 1 | Y7: 1 | Z7: 1 | AA7: 1 | AB7: 1 | AC7: 1 | AD7: 1 | AE7: 1 | AF7: 1 | AG7: 1 | AH7: 1 | AI7: 1 | AJ7: 1 | AK7: 1 | AL7: 5 | AM7: 1 | AN7: 1 | AO7: 5 | AP7: 5 | AQ7: 1 | AR7: 1 | AS7: 5 | AT7: 5 | AU7: 1 | AV7: 5 | AW7: 1
A8: Controparti/Relazioni | B8: Il processo richiede una relazione con soggetti (pubblici o privati) esterni all'organizzazione, che possono interferire con le scelte dei ruoli di indirizzo, gestionali e operativi | C8: 1 | D8: 1 | E8: 1 | F8: 5 | G8: 1 | H8: 5 | I8: 5 | J8: 5 | K8: 1 | L8: 1 | M8: 1 | N8: 1 | O8: 1 | P8: 1 | Q8: 1 | R8: 5 | S8: 1 | T8: 5 | U8: 5 | V8: 5 | W8: 5 | X8: 1 | Y8: 1 | Z8: 1 | AA8: 1 | AB8: 1 | AC8: 5 | AD8: 5 | AE8: 5 | AF8: 5 | AG8: 5 | AH8: 5 | AI8: 5 | AJ8: 5 | AK8: 1 | AL8: 5 | AM8: 5 | AN8: 5 | AO8: 1 | AP8: 1 | AQ8: 1 | AR8: 1 | AS8: 1 | AT8: 1 | AU8: 1 | AV8: 5 | AW8: 1
A9: Informazioni | B9: I ruoli di indirizzo, gestionali o operativi che intervengono nel processo possono entrare in possesso di dati o informazioni, che possono essere utilizzati per ricavare un vantaggio personale o avvantaggiare altri soggetti | C9: 1 | D9: 1 | E9: 5 | F9: 1 | G9: 1 | H9: 5 | I9: 5 | J9: 5 | K9: 1 | L9: 1 | M9: 1 | N9: 1 | O9: 1 | P9: 1 | Q9: 1 | R9: 1 | S9: 1 | T9: 1 | U9: 1 | V9: 5 | W9: 5 | X9: 1 | Y9: 1 | Z9: 1 | AA9: 1 | AB9: 1 | AC9: 1 | AD9: 5 | AE9: 1 | AF9: 1 | AG9: 1 | AH9: 1 | AI9: 1 | AJ9: 1 | AK9: 1 | AL9: 5 | AM9: 1 | AN9: 1 | AO9: 1 | AP9: 1 | AQ9: 1 | AR9: 1 | AS9: 1 | AT9: 1 | AU9: 1 | AV9: 5 | AW9: 1
A10: Interessi | B10: Il processo può danneggiare o favorire in modo rilevante interessi privati | C10: 5 | D10: 1 | E10: 5 | F10: 1 | G10: 1 | H10: 5 | I10: 5 | J10: 5 | K10: 5 | L10: 5 | M10: 1 | N10: 5 | O10: 1 | P10: 1 | Q10: 1 | R10: 5 | S10: 5 | T10: 5 | U10: 5 | V10: 5 | W10: 5 | X10: 1 | Y10: 5 | Z10: 5 | AA10: 1 | AB10: 1 | AC10: 5 | AD10: 5 | AE10: 5 | AF10: 5 | AG10: 5 | AH10: 5 | AI10: 5 | AJ10: 5 | AK10: 5 | AL10: 5 | AM10: 5 | AN10: 5 | AO10: 5 | AP10: 5 | AQ10: 5 | AR10: 5 | AS10: 1 | AT10: 1 | AU10: 1 | AV10: 5 | AW10: 1
A11: Opacità | B11: Le scelte compiute nel corso del processo non sono sufficientemente documentate e giustificate. C'è carenza di flussi informativi trasparenti fra i soggetti coinvolti in uno stesso processo. | C11: 1 | D11: 1 | E11: 1 | F11: 1 | G11: 1 | H11: 1 | I11: 5 | J11: 1 | K11: 1 | L11: 1 | M11: 1 | N11: 1 | O11: 1 | P11: 1 | Q11: 1 | R11: 1 | S11: 1 | T11: 1 | U11: 1 | V11: 1 | W11: 1 | X11: 1 | Y11: 1 | Z11: 1 | AA11: 1 | AB11: 1 | AC11: 1 | AD11: 1 | AE11: 1 | AF11: 1 | AG11: 1 | AH11: 1 | AI11: 1 | AJ11: 1 | AK11: 1 | AL11: 1 | AM11: 1 | AN11: 1 | AO11: 1 | AP11: 1 | AQ11: 1 | AR11: 1 | AS11: 1 | AT11: 1 | AU11: 1 | AV11: 5 | AW11: 1
A12: Regole | B12: Il processo è regolato da "rules" (norme, regolamenti, procedure) poco chiare. | C12: 1 | D12: 1 | E12: 5 | F12: 1 | G12: 1 | H12: 1 | I12: 5 | J12: 1 | K12: 1 | L12: 1 | M12: 1 | N12: 1 | O12: 1 | P12: 1 | Q12: 1 | R12: 1 | S12: 1 | T12: 1 | U12: 1 | V12: 1 | W12: 1 | X12: 1 | Y12: 1 | Z12: 1 | AA12: 1 | AB12: 1 | AC12: 1 | AD12: 1 | AE12: 1 | AF12: 1 | AG12: 1 | AH12: 1 | AI12: 1 | AJ12: 1 | AK12: 1 | AL12: 1 | AM12: 1 | AN12: 1 | AO12: 1 | AP12: 1 | AQ12: 1 | AR12: 1 | AS12: 1 | AT12: 1 | AU12: 1 | AV12: 5 | AW12: 1
A13: Rilevanza economica | B13: Al processo sono destinate ingenti risorse finanziarie o da esso possono derivare notevoli entrate per l'amministrazione | C13: 5 | D13: 1 | E13: 1 | F13: 5 | G13: 1 | H13: 1 | I13: 5 | J13: 1 | K13: 1 | L13: 1 | M13: 1 | N13: 5 | O13: 1 | P13: 1 | Q13: 1 | R13: 1 | S13: 1 | T13: 5 | U13: 5 | V13: 5 | W13: 5 | X13: 1 | Y13: 1 | Z13: 1 | AA13: 5 | AB13: 5 | AC13: 1 | AD13: 5 | AE13: 1 | AF13: 1 | AG13: 1 | AH13: 1 | AI13: 5 | AJ13: 5 | AK13: 5 | AL13: 5 | AM13: 5 | AN13: 5 | AO13: 5 | AP13: 5 | AQ13: 1 | AR13: 1 | AS13: 1 | AT13: 1 | AU13: 1 | AV13: 5 | AW13: 1
A14: Monopolio interno | B14: Il processo coinvolge sempre gli stessi soggetti interni all'organizzazione. | C14: 5 | D14: 5 | E14: 5 | F14: 1 | G14: 5 | H14: 5 | I14: 5 | J14: 5 | K14: 1 | L14: 5 | M14: 5 | N14: 5 | O14: 5 | P14: 5 | Q14: 5 | R14: 5 | S14: 5 | T14: 5 | U14: 5 | V14: 5 | W14: 5 | X14: 5 | Y14: 5 | Z14: 5 | AA14: 5 | AB14: 5 | AC14: 5 | AD14: 5 | AE14: 5 | AF14: 5 | AG14: 5 | AH14: 5 | AI14: 5 | AJ14: 5 | AK14: 5 | AL14: 5 | AM14: 5 | AN14: 5 | AO14: 5 | AP14: 5 | AQ14: 5 | AR14: 5 | AS14: 5 | AT14: 5 | AU14: 5 | AV14: 5 | AW14: 1
A15: Discrezionalità | B15: I soggetti che agiscono nel processo hanno ampi margini di discrezionalità, non solo in relazione alle scelte e azioni che compiono, ma anche in relazione ai criteri in base a cui scelgono e agiscono | C15: 5 | D15: 5 | E15: 5 | F15: 5 | G15: 5 | H15: 1 | I15: 5 | J15: 5 | K15: 1 | L15: 1 | M15: 1 | N15: 5 | O15: 5 | P15: 1 | Q15: 1 | R15: 1 | S15: 5 | T15: 1 | U15: 1 | V15: 5 | W15: 5 | X15: 1 | Y15: 1 | Z15: 1 | AA15: 1 | AB15: 1 | AC15: 1 | AD15: 1 | AE15: 1 | AF15: 1 | AG15: 1 | AH15: 1 | AI15: 5 | AJ15: 1 | AK15: 5 | AL15: 5 | AM15: 5 | AN15: 5 | AO15: 1 | AP15: 1 | AQ15: 1 | AR15: 1 | AS15: 5 | AT15: 5 | AU15: 5 | AV15: 5 | AW15: 1
A16: ANOMALIE | B16: DESCRIZIONE | C16: punteggio | D16: punteggio | E16: punteggio | F16: punteggio | G16: punteggio | H16: punteggio | I16: punteggio | J16: punteggio | K16: punteggio | L16: punteggio | M16: punteggio | N16: punteggio | O16: punteggio | P16: punteggio | Q16: punteggio | R16: punteggio | S16: punteggio | T16: punteggio | U16: punteggio | V16: punteggio | W16: MIN | X16: MAX | Y16: punteggio | Z16: punteggio | AA16: punteggio | AB16: punteggio | AC16: punteggio | AD16: punteggio | AE16: punteggio | AF16: punteggio | AG16: punteggio | AH16: punteggio | AI16: punteggio | AJ16: punteggio | AK16: punteggio | AL16: punteggio | AM16: punteggio | AN16: punteggio | AO16: punteggio | AP16: punteggio | AQ16: punteggio | AR16: punteggio | AS16: punteggio | AT16: punteggio | AU16: punteggio | AV16: punteggio | AW16: punteggio
A17: Arbitrarietà | B17: Le scelte compiute nel corso del processo sembrano arbitrarie, se messe in relazione con gli obiettivi del processo | C17: 1 | D17: 1 | E17: 1 | F17: 1 | G17: 1 | H17: 1 | I17: 1 | J17: 1 | K17: 1 | L17: 1 | M17: 1 | N17: 1 | O17: 1 | P17: 1 | Q17: 1 | R17: 1 | S17: 1 | T17: 1 | U17: 1 | V17: 1 | W17: 1 | X17: 1 | Y17: 1 | Z17: 1 | AA17: 1 | AB17: 1 | AC17: 1 | AD17: 1 | AE17: 1 | AF17: 1 | AG17: 1 | AH17: 1 | AI17: 1 | AJ17: 1 | AK17: 1 | AL17: 1 | AM17: 1 | AN17: 1 | AO17: 1 | AP17: 1 | AQ17: 1 | AR17: 1 | AS17: 1 | AT17: 1 | AU17: 1 | AV17: 5 | AW17: 1
A18: Frazionamenti | B18: I processo è stato frazionato e il frazionamento appare anomalo, in relazione agli obiettivi del processo e alle regole (leggi, procedure, prassi) di riferimento del processo | C18: 1 | D18: 1 | E18: 1 | F18: 1 | G18: 1 | H18: 1 | I18: 1 | J18: 1 | K18: 1 | L18: 1 | M18: 1 | N18: 1 | O18: 1 | P18: 1 | Q18: 1 | R18: 1 | S18: 1 | T18: 1 | U18: 1 | V18: 1 | W18: 1 | X18: 1 | Y18: 1 | Z18: 1 | AA18: 1 | AB18: 1 | AC18: 1 | AD18: 1 | AE18: 1 | AF18: 1 | AG18: 1 | AH18: 1 | AI18: 1 | AJ18: 1 | AK18: 1 | AL18: 1 | AM18: 1 | AN18: 1 | AO18: 1 | AP18: 1 | AQ18: 1 | AR18: 1 | AS18: 1 | AT18: 1 | AU18: 1 | AV18: 5 | AW18: 1
A19: Monopolio esterno | B19: Il processo favorisce sempre gli stessi soggetti esterni all'organizzazione | C19: 1 | D19: 1 | E19: 1 | F19: 1 | G19: 1 | H19: 1 | I19: 1 | J19: 1 | K19: 1 | L19: 1 | M19: 1 | N19: 1 | O19: 1 | P19: 1 | Q19: 1 | R19: 1 | S19: 1 | T19: 1 | U19: 1 | V19: 1 | W19: 1 | X19: 1 | Y19: 1 | Z19: 1 | AA19: 1 | AB19: 1 | AC19: 1 | AD19: 1 | AE19: 1 | AF19: 1 | AG19: 1 | AH19: 1 | AI19: 1 | AJ19: 1 | AK19: 1 | AL19: 1 | AM19: 1 | AN19: 1 | AO19: 1 | AP19: 1 | AQ19: 1 | AR19: 1 | AS19: 1 | AT19: 1 | AU19: 1 | AV19: 5 | AW19: 1
A20: Near Miss | B20: nella gestione del processo si sono evidenziati casi di sanzioni disciplinari, assenteismo, violazione del codice, ecc … | C20: 1 | D20: 1 | E20: 1 | F20: 1 | G20: 1 | H20: 1 | I20: 1 | J20: 1 | K20: 1 | L20: 1 | M20: 1 | N20: 1 | O20: 1 | P20: 1 | Q20: 1 | R20: 1 | S20: 1 | T20: 1 | U20: 1 | V20: 1 | W20: 1 | X20: 1 | Y20: 1 | Z20: 1 | AA20: 1 | AB20: 1 | AC20: 1 | AD20: 1 | AE20: 1 | AF20: 1 | AG20: 1 | AH20: 1 | AI20: 1 | AJ20: 1 | AK20: 1 | AL20: 1 | AM20: 1 | AN20: 1 | AO20: 1 | AP20: 1 | AQ20: 1 | AR20: 1 | AS20: 1 | AT20: 1 | AU20: 1 | AV20: 5 | AW20: 1
A21: Reati pregressi | B21: Nella gestione/conduzione del processo si sono già verificati, in precedenza, dei casi di corruzione | C21: 1 | D21: 1 | E21: 1 | F21: 1 | G21: 1 | H21: 1 | I21: 1 | J21: 1 | K21: 1 | L21: 1 | M21: 1 | N21: 1 | O21: 1 | P21: 1 | Q21: 1 | R21: 1 | S21: 1 | T21: 1 | U21: 1 | V21: 1 | W21: 1 | X21: 1 | Y21: 1 | Z21: 1 | AA21: 1 | AB21: 1 | AC21: 1 | AD21: 1 | AE21: 1 | AF21: 1 | AG21: 1 | AH21: 1 | AI21: 1 | AJ21: 1 | AK21: 1 | AL21: 1 | AM21: 1 | AN21: 1 | AO21: 1 | AP21: 1 | AQ21: 1 | AR21: 1 | AS21: 1 | AT21: 1 | AU21: 1 | AV21: 5 | AW21: 1
A22: Reclami | B22: la gestione/conduzione del processo genera contenziosi: ricorsi, lamentele sul servizio, ecc … | C22: 1 | D22: 5 | E22: 1 | F22: 5 | G22: 1 | H22: 1 | I22: 1 | J22: 1 | K22: 1 | L22: 1 | M22: 1 | N22: 1 | O22: 1 | P22: 1 | Q22: 1 | R22: 1 | S22: 1 | T22: 1 | U22: 1 | V22: 1 | W22: 1 | X22: 1 | Y22: 1 | Z22: 1 | AA22: 1 | AB22: 1 | AC22: 1 | AD22: 1 | AE22: 1 | AF22: 1 | AG22: 1 | AH22: 1 | AI22: 1 | AJ22: 5 | AK22: 5 | AL22: 1 | AM22: 1 | AN22: 1 | AO22: 1 | AP22: 1 | AQ22: 1 | AR22: 1 | AS22: 1 | AT22: 1 | AU22: 1 | AV22: 5 | AW22: 1
A23: Tempistiche | B23: Le tempistiche di avvio, sviluppo e conclusione del processo sembrano anomale, se confrontate con le tempistiche medie previste per il processo | C23: 1 | D23: 1 | E23: 1 | F23: 1 | G23: 1 | H23: 1 | I23: 1 | J23: 1 | K23: 1 | L23: 1 | M23: 1 | N23: 1 | O23: 1 | P23: 1 | Q23: 1 | R23: 1 | S23: 1 | T23: 1 | U23: 1 | V23: 1 | W23: 1 | X23: 1 | Y23: 1 | Z23: 1 | AA23: 1 | AB23: 1 | AC23: 1 | AD23: 1 | AE23: 1 | AF23: 1 | AG23: 1 | AH23: 1 | AI23: 1 | AJ23: 1 | AK23: 1 | AL23: 1 | AM23: 1 | AN23: 1 | AO23: 1 | AP23: 1 | AQ23: 1 | AR23: 1 | AS23: 1 | AT23: 1 | AU23: 1 | AV23: 5 | AW23: 1
A24: Variabilità | B24: L'output di del processo subisce delle modifiche, successive alla conclusone del processo (es. modifiche bilancio, modifiche in autotutela, rettifiche, varianti in corso d’opera) | C24: 5 | D24: 1 | E24: 1 | F24: 1 | G24: 1 | H24: 1 | I24: 1 | J24: 1 | K24: 1 | L24: 1 | M24: 1 | N24: 1 | O24: 1 | P24: 1 | Q24: 1 | R24: 1 | S24: 1 | T24: 1 | U24: 1 | V24: 1 | W24: 1 | X24: 1 | Y24: 1 | Z24: 1 | AA24: 1 | AB24: 1 | AC24: 1 | AD24: 1 | AE24: 1 | AF24: 1 | AG24: 1 | AH24: 1 | AI24: 1 | AJ24: 1 | AK24: 1 | AL24: 1 | AM24: 1 | AN24: 1 | AO24: 1 | AP24: 1 | AQ24: 1 | AR24: 1 | AS24: 1 | AT24: 1 | AU24: 1 | AV24: 5 | AW24: 1
A25: AREE DI IMPATTO | B25: DESCRIZIONE | C25: punteggio | D25: punteggio | E25: punteggio | F25: punteggio | G25: punteggio | H25: punteggio | I25: punteggio | J25: punteggio | K25: punteggio | L25: punteggio | M25: punteggio | N25: punteggio | O25: punteggio | P25: punteggio | Q25: punteggio | R25: punteggio | S25: punteggio | T25: punteggio | U25: punteggio | V25: punteggio | W25: MIN | X25: MAX | Y25: punteggio | Z25: punteggio | AA25: punteggio | AB25: punteggio | AC25: punteggio | AD25: punteggio | AE25: punteggio | AF25: punteggio | AG25: punteggio | AH25: punteggio | AI25: punteggio | AJ25: punteggio | AK25: punteggio | AL25: punteggio | AM25: punteggio | AN25: punteggio | AO25: punteggio | AP25: punteggio | AQ25: punteggio | AR25: punteggio | AS25: punteggio | AT25: punteggio | AU25: punteggio | AV25: punteggio | AW25: punteggio
A26: Impatto sulla libera concorrenza | B26: L'evento di corruzione può avere conseguenze negative sulla libera concorrenza, favorendo alcune aziende, a discapito di altre; oppure agevolando la formazione di "cartelli" fra gli operatori economici? | C26: 1 | D26: 1 | E26: 5 | F26: 1 | G26: 1 | H26: 5 | I26: 5 | J26: 5 | K26: 5 | L26: 1 | M26: 1 | N26: 5 | O26: 1 | P26: 1 | Q26: 1 | R26: 5 | S26: 5 | T26: 5 | U26: 5 | V26: 5 | W26: 5 | X26: 5 | Y26: 5 | Z26: 5 | AA26: 1 | AB26: 1 | AC26: 5 | AD26: 1 | AE26: 5 | AF26: 5 | AG26: 5 | AH26: 5 | AI26: 1 | AJ26: 5 | AK26: 5 | AL26: 1 | AM26: 1 | AN26: 1 | AO26: 1 | AP26: 1 | AQ26: 1 | AR26: 1 | AS26: 1 | AT26: 1 | AU26: 1 | AV26: 5 | AW26: 1
A27: Impatto sulla spesa pubblica | B27: L'evento di corruzione può avere conseguenze negative sulla spesa pubblica o sulle entrate (per esempio: maggiori risorse per gli stessi beni o servizi)? | C27: 5 | D27: 1 | E27: 5 | F27: 5 | G27: 1 | H27: 5 | I27: 5 | J27: 5 | K27: 5 | L27: 1 | M27: 1 | N27: 5 | O27: 1 | P27: 1 | Q27: 1 | R27: 1 | S27: 5 | T27: 5 | U27: 5 | V27: 1 | W27: 1 | X27: 1 | Y27: 5 | Z27: 1 | AA27: 5 | AB27: 5 | AC27: 5 | AD27: 5 | AE27: 1 | AF27: 1 | AG27: 1 | AH27: 1 | AI27: 5 | AJ27: 5 | AK27: 5 | AL27: 5 | AM27: 5 | AN27: 5 | AO27: 5 | AP27: 5 | AQ27: 1 | AR27: 1 | AS27: 1 | AT27: 1 | AU27: 1 | AV27: 5 | AW27: 1
A28: Impatto sulla qualità delle opere pubbliche e dei servizi pubblici | B28: L'evento di corruzione può influire negativamente sulla qualità delle opere e dei servizi pubblici (per esempio: minore qualità delle opere pubbliche o minore efficacia dei servizi)? | C28: 5 | D28: 5 | E28: 5 | F28: 5 | G28: 1 | H28: 5 | I28: 5 | J28: 5 | K28: 5 | L28: 1 | M28: 1 | N28: 5 | O28: 1 | P28: 1 | Q28: 1 | R28: 1 | S28: 5 | T28: 5 | U28: 5 | V28: 5 | W28: 5 | X28: 1 | Y28: 1 | Z28: 5 | AA28: 1 | AB28: 1 | AC28: 1 | AD28: 1 | AE28: 5 | AF28: 5 | AG28: 5 | AH28: 5 | AI28: 5 | AJ28: 5 | AK28: 5 | AL28: 1 | AM28: 5 | AN28: 5 | AO28: 5 | AP28: 5 | AQ28: 1 | AR28: 1 | AS28: 1 | AT28: 1 | AU28: 5 | AV28: 5 | AW28: 1
A29: Impatto sull'allocazione risorse pubbliche | B29: l'evento di corruzione può influire sulla destinazione delle risorse pubbliche, facendo privilegiare le attività e i settori in cui possono esserci maggiori guadagni illeciti? | C29: 5 | D29: 5 | E29: 5 | F29: 1 | G29: 1 | H29: 5 | I29: 5 | J29: 5 | K29: 5 | L29: 1 | M29: 1 | N29: 5 | O29: 1 | P29: 1 | Q29: 1 | R29: 1 | S29: 1 | T29: 1 | U29: 1 | V29: 5 | W29: 5 | X29: 1 | Y29: 1 | Z29: 5 | AA29: 1 | AB29: 1 | AC29: 5 | AD29: 5 | AE29: 5 | AF29: 5 | AG29: 5 | AH29: 5 | AI29: 1 | AJ29: 1 | AK29: 1 | AL29: 5 | AM29: 1 | AN29: 1 | AO29: 1 | AP29: 1 | AQ29: 1 | AR29: 1 | AS29: 1 | AT29: 1 | AU29: 1 | AV29: 5 | AW29: 1
B31: Fattori di rischio (punteggio) | C31: =AVERAGE(C3:C15) -> 2.538461538 | D31: 1.615384615 | E31: 3.153846154 | F31: 2.538461538 | G31: 2.230769231 | H31: 2.846153846 | I31: 4.384615385 | J31: 2.846153846 | K31: 1.615384615 | L31: =AVERAGE(L3:L15) -> 2.230769231 | M31: 1.923076923 | N31: 3.153846154 | O31: 1.923076923 | P31: =AVERAGE(P3:P15) -> 1.615384615 | Q31: 1.615384615 | R31: 2.846153846 | S31: 2.538461538 | T31: 2.846153846 | U31: 2.846153846 | V31: 3.461538462 | W31: 3.461538462 | X31: 1.615384615 | Y31: 1.923076923 | Z31: =AVERAGE(Z3:Z15) -> 2.230769231 | AA31: 2.538461538 | AB31: 2.538461538 | AC31: 2.230769231 | AD31: 3.153846154 | AE31: 2.230769231 | AF31: 2.230769231 | AG31: 2.230769231 | AH31: 2.230769231 | AI31: 2.846153846 | AJ31: 2.846153846 | AK31: 2.538461538 | AL31: 3.461538462 | AM31: =AVERAGE(AM3:AM15) -> 2.846153846 | AN31: 2.846153846 | AO31: 2.846153846 | AP31: 2.846153846 | AQ31: 2.230769231 | AR31: 2.230769231 | AS31: 2.538461538 | AT31: 2.230769231 | AU31: 1.923076923 | AV31: 5 | AW31: =AVERAGE(AW3:AW15) -> 1
B32: Anomalie (punteggio) | C32: =AVERAGE(C17:C24) -> 1.5 | D32: 1.5 | E32: 1 | F32: 1.5 | G32: 1 | H32: 1 | I32: 1 | J32: 1 | K32: 1 | L32: =AVERAGE(L17:L24) -> 1 | M32: 1 | N32: 1 | O32: 1 | P32: =AVERAGE(P17:P24) -> 1 | Q32: 1 | R32: 1 | S32: 1 | T32: 1 | U32: 1 | V32: 1 | W32: 1 | X32: 1 | Y32: 1 | Z32: =AVERAGE(Z17:Z24) -> 1 | AA32: 1 | AB32: 1 | AC32: 1 | AD32: 1 | AE32: 1 | AF32: 1 | AG32: 1 | AH32: 1 | AI32: 1 | AJ32: 1.5 | AK32: 1.5 | AL32: 1 | AM32: =AVERAGE(AM17:AM24) -> 1 | AN32: 1 | AO32: 1 | AP32: 1 | AQ32: 1 | AR32: 1 | AS32: 1 | AT32: 1 | AU32: 1 | AV32: 5 | AW32: =AVERAGE(AW17:AW24) -> 1
B33: PROBABILITA' | C33: =AVERAGE(C31,C32) -> 2.019230769 | D33: 1.557692308 | E33: 2.076923077 | F33: 2.019230769 | G33: 1.615384615 | H33: 1.923076923 | I33: 2.692307692 | J33: 1.923076923 | K33: 1.307692308 | L33: =AVERAGE(L31,L32) -> 1.615384615 | M33: 1.461538462 | N33: 2.076923077 | O33: 1.461538462 | P33: =AVERAGE(P31,P32) -> 1.307692308 | Q33: 1.307692308 | R33: 1.923076923 | S33: 1.769230769 | T33: 1.923076923 | U33: 1.923076923 | V33: 2.230769231 | W33: 2.230769231 | X33: 1.307692308 | Y33: 1.461538462 | Z33: =AVERAGE(Z31,Z32) -> 1.615384615 | AA33: =AVERAGE(AA31,AA32) -> 1.769230769 | AB33: =AVERAGE(AB31,AB32) -> 1.769230769 | AC33: =AVERAGE(AC31,AC32) -> 1.615384615 | AD33: =AVERAGE(AD31,AD32) -> 2.076923077 | AE33: =AVERAGE(AE31,AE32) -> 1.615384615 | AF33: =AVERAGE(AF31,AF32) -> 1.615384615 | AG33: =AVERAGE(AG31,AG32) -> 1.615384615 | AH33: =AVERAGE(AH31,AH32) -> 1.615384615 | AI33: =AVERAGE(AI31,AI32) -> 1.923076923 | AJ33: =AVERAGE(AJ31,AJ32) -> 2.173076923 | AK33: =AVERAGE(AK31,AK32) -> 2.019230769 | AL33: =AVERAGE(AL31,AL32) -> 2.230769231 | AM33: =AVERAGE(AM31,AM32) -> 1.923076923 | AN33: =AVERAGE(AN31,AN32) -> 1.923076923 | AO33: =AVERAGE(AO31,AO32) -> 1.923076923 | AP33: =AVERAGE(AP31,AP32) -> 1.923076923 | AQ33: =AVERAGE(AQ31,AQ32) -> 1.615384615 | AR33: =AVERAGE(AR31,AR32) -> 1.615384615 | AS33: =AVERAGE(AS31,AS32) -> 1.769230769 | AT33: =AVERAGE(AT31,AT32) -> 1.615384615 | AU33: =AVERAGE(AU31,AU32) -> 1.461538462 | AV33: =AVERAGE(AV31,AV32) -> 5 | AW33: 1
B34: IMPATTO | C34: =AVERAGE(C26:C29) -> 4 | D34: 3 | E34: 5 | F34: 3 | G34: 1 | H34: 5 | I34: 5 | J34: 5 | K34: 5 | L34: =AVERAGE(L26:L29) -> 1 | M34: 1 | N34: 5 | O34: 1 | P34: =AVERAGE(P26:P29) -> 1 | Q34: 1 | R34: 2 | S34: 4 | T34: 4 | U34: 4 | V34: 4 | W34: 4 | X34: 2 | Y34: 3 | Z34: =AVERAGE(Z26:Z29) -> 4 | AA34: 2 | AB34: 2 | AC34: 4 | AD34: 3 | AE34: 4 | AF34: 4 | AG34: 4 | AH34: 4 | AI34: 3 | AJ34: 4 | AK34: 4 | AL34: 3 | AM34: =AVERAGE(AM26:AM29) -> 3 | AN34: 3 | AO34: 3 | AP34: 3 | AQ34: 1 | AR34: 1 | AS34: 1 | AT34: 1 | AU34: 2 | AV34: 5 | AW34: =AVERAGE(AW26:AW29) -> 1
B35: LIVELLO DI RISCHIO | C35: =C33*C34 -> 8.076923077 | D35: 4.673076923 | E35: 10.38461538 | F35: 6.057692308 | G35: 1.615384615 | H35: 9.615384615 | I35: 13.46153846 | J35: 9.615384615 | K35: 6.538461538 | L35: =L33*L34 -> 1.615384615 | M35: 1.461538462 | N35: 10.38461538 | O35: 1.461538462 | P35: =P33*P34 -> 1.307692308 | Q35: 1.307692308 | R35: 3.846153846 | S35: 7.076923077 | T35: 7.692307692 | U35: 7.692307692 | V35: 8.923076923 | W35: 8.923076923 | X35: 2.615384615 | Y35: 4.384615385 | Z35: =Z33*Z34 -> 6.461538462 | AA35: =AA33*AA34 -> 3.538461538 | AB35: =AB33*AB34 -> 3.538461538 | AC35: =AC33*AC34 -> 6.461538462 | AD35: =AD33*AD34 -> 6.230769231 | AE35: =AE33*AE34 -> 6.461538462 | AF35: =AF33*AF34 -> 6.461538462 | AG35: =AG33*AG34 -> 6.461538462 | AH35: =AH33*AH34 -> 6.461538462 | AI35: =AI33*AI34 -> 5.769230769 | AJ35: =AJ33*AJ34 -> 8.692307692 | AK35: =AK33*AK34 -> 8.076923077 | AL35: =AL33*AL34 -> 6.692307692 | AM35: =AM33*AM34 -> 5.769230769 | AN35: =AN33*AN34 -> 5.769230769 | AO35: =AO33*AO34 -> 5.769230769 | AP35: =AP33*AP34 -> 5.769230769 | AQ35: =AQ33*AQ34 -> 1.615384615 | AR35: =AR33*AR34 -> 1.615384615 | AS35: =AS33*AS34 -> 1.769230769 | AT35: =AT33*AT34 -> 1.615384615 | AU35: =AU33*AU34 -> 2.923076923 | AV35: =AV33*AV34 -> 25 | AW35: 1

Sheet Foglio2 (hidden)
A1: 1 | B1: no
A2: 5 | B2: sì
